bitfinex-derivatives/quotes_ETHF0:USTF0_20241004
["timestamp","ask_amount","ask_price","bid_price","bid_amount"]
[1728017174863,3.28,2375.1,2374.8,0.82419]
[1728017175558,3.28,2375.1,2374.8,0.4031]
[1728017178471,3.70106,2375.1,2374.8,0.4031]
[1728017178667,3.28,2374.9,2374.7,0.4256]
[1728017178863,3.7011,2374.9,2374.6,0.4277]
[1728017179467,4.5111,2374.9,2374.6,0.4277]
[1728017179770,4.51109,2374.9,2374.6,0.4277]
[1728017181162,3.28,2375.1,2374.6,0.4277]
[1728017181358,3.28,2375.1,2374.7,0.3967]
[1728017181563,0.8089,2375.3,2374.9,0.42107]
[1728017181564,4.0889,2375.3,2374.9,0.42107]
[1728017181763,4.0889,2375.3,2375.0,0.3962]
[1728017182170,0.42103,2375.2,2375.0,0.3962]
[1728017182374,0.42103,2375.2,2374.8,0.4211]
[1728017182565,3.28,2375.0,2374.9,0.42109]
[1728017182966,3.28,2375.0,2374.6,0.098]
[1728017183176,3.2078,2375.2,2374.8,0.4211]
[1728017183177,3.28,2375.1,2374.8,0.4211]
[1728017183374,3.28,2375.1,2374.9,0.42108]
[1728017183570,3.28,2375.1,2374.7,0.794]
[1728017183870,3.28,2375.1,2374.8,0.42109]
[1728017184376,3.28,2374.9,2374.5,3.2078]
[1728017184576,3.70113,2374.7,2374.5,3.2078]
[1728017184969,0.42114,2374.6,2374.5,3.2078]
[1728017185669,3.28,2374.7,2374.1,0.098]
[1728017185872,3.28,2374.3,2373.9,3.62905]
[1728017186070,3.28,2374.3,2374.1,0.42121]
[1728017186277,6.90895,2374.6,2374.2,0.42121]
[1728017186976,6.90895,2374.6,2374.0,0.4239]
[1728017186977,6.4878,2374.6,2374.0,0.4239]
[1728017187365,6.90895,2374.6,2374.2,0.4212]
[1728017187571,6.4878,2374.6,2374.0,0.4239]
[1728017187771,6.4878,2374.6,2374.1,0.42122]
[1728017187772,0.42116,2374.5,2374.1,0.42122]
[1728017188174,0.4023,2374.4,2374.1,0.42122]
[1728017188369,0.4023,2374.4,2374.1,0.42123]
[1728017188572,0.4023,2374.4,2374.0,0.4239]
[1728017188771,0.4023,2374.4,2374.2,0.4212]
[1728017190173,4.12051,2374.8,2374.0,0.4239]
[1728017190373,4.1017,2374.8,2374.5,0.42115]
[1728017190677,4.52281,2374.8,2374.4,0.42116]
[1728017192478,0.42113,2374.7,2374.3,0.8133]
[1728017192679,4.52281,2374.8,2374.4,0.42117]
[1728017192882,4.52281,2374.8,2374.3,0.8133]
[1728017192883,4.1017,2374.8,2374.2,3.2078]
[1728017193081,3.28,2374.5,2374.3,0.42118]
[1728017193580,3.28,2374.5,2374.4,0.42118]
[1728017193881,3.28,2374.5,2374.2,3.2078]
[1728017194282,0.4031,2374.4,2374.2,3.629]
[1728017194484,0.4031,2374.4,2374.2,0.4212]
[1728017195880,3.28,2374.5,2374.0,1.2536]
[1728017196184,0.4194,2374.8,2374.6,0.42114]
[1728017196185,3.6831,2374.7,2374.6,0.42114]
[1728017196783,3.6831,2374.7,2374.5,0.42115]
[1728017197978,3.6831,2374.7,2374.6,0.42114]
[1728017199484,3.6831,2374.7,2374.4,0.42116]
[1728017199991,3.6831,2374.7,2374.2,3.2078]
[1728017200193,3.6831,2374.7,2374.5,0.42115]
[1728017200791,3.6831,2374.7,2374.0,1.2536]
[1728017200983,3.28,2374.4,2374.1,0.42121]
[1728017201189,3.70118,2374.4,2374.0,1.67484]
[1728017201484,0.797,2374.3,2374.0,1.25094]
[1728017201891,0.797,2374.3,2374.0,0.8297]
[1728017201892,3.28,2374.2,2374.0,0.8297]
[1728017202085,3.28,2374.2,2373.9,3.62905]
[1728017202287,3.28,2374.2,2373.9,3.2078]
[1728017202482,3.70121,2374.2,2373.9,3.62906]
[1728017202995,3.28,2374.0,2373.9,3.62906]
[1728017203493,3.28,2374.0,2373.9,3.2078]
[1728017203695,3.28,2374.0,2373.9,3.62906]
[1728017203890,0.42135,2373.4,2373.3,0.098]
[1728017204092,0.42135,2373.4,2372.6,0.06000001]
[1728017204093,0.42143,2373.0,2372.6,0.06000001]
[1728017204286,3.28,2373.4,2372.3,3.2078]
[1728017204287,3.28,2372.7,2372.4,0.42152]
[1728017204485,3.28,2372.7,2372.5,0.4215]
[1728017204694,3.28,2372.9,2372.3,3.2078]
[1728017204896,3.2078,2373.2,2372.6,3.2078]
[1728017205093,3.28,2373.1,2372.7,0.4134]
[1728017205289,3.28,2372.9,2372.6,3.2078]
[1728017205495,3.28,2372.7,2372.6,3.2078]
[1728017205990,13.4944,2372.7,2372.6,3.2078]
[1728017206191,13.4944,2372.7,2371.7,3.2078]
[1728017206398,0.4273,2373.3,2371.7,3.2078]
[1728017206399,3.28,2372.1,2371.7,3.2078]
[1728017206592,3.28,2372.1,2371.8,0.42163]
[1728017207190,3.28,2372.1,2371.7,3.2078]
[1728017207191,3.28,2371.9,2371.7,3.2078]
[1728017207591,4.216,2371.8,2371.2,3.2078]
[1728017207787,3.28,2371.3,2371.2,0.42173]
[1728017207987,3.6182,2372.0,2371.4,0.42171]
[1728017207988,3.28,2371.5,2371.4,0.42171]
[1728017208190,3.6182,2372.0,2371.2,3.2078]
[1728017208191,3.28,2371.8,2371.2,3.2078]
[1728017208405,0.42163,2371.9,2371.4,0.4217]
[1728017208592,3.28,2371.5,2371.4,0.4217]
[1728017209093,3.28,2371.5,2371.3,0.42172]
[1728017209305,3.28,2371.7,2371.2,3.2078]
[1728017209491,0.4104,2372.0,2371.5,0.42168]
[1728017209492,0.83201,2372.0,2371.5,0.42168]
[1728017209695,0.4104,2372.0,2371.5,0.42168]
[1728017209891,0.4104,2372.0,2371.5,0.42169]
[1728017210105,0.4104,2372.0,2371.5,0.42168]
[1728017210411,0.4104,2372.0,2371.2,3.2078]
[1728017210602,0.4104,2372.0,2371.6,0.42166]
[1728017210798,0.4104,2372.0,2371.7,0.42165]
[1728017211103,3.2078,2372.3,2371.8,0.42163]
[1728017211297,0.4068,2372.5,2371.6,3.2078]
[1728017211497,0.4068,2372.5,2371.9,3.2078]
[1728017211699,0.4068,2372.5,2372.3,0.42154]
[1728017211997,0.4068,2372.5,2371.9,3.2078]
[1728017212395,0.4068,2372.5,2372.1,0.42157]
[1728017212796,0.4068,2372.5,2371.9,3.2078]
[1728017212997,3.2078,2372.6,2372.4,0.42153]
[1728017213196,3.2078,2372.6,2372.2,0.42155]
[1728017213606,3.2078,2372.6,2372.0,0.4212]
[1728017213607,3.2078,2372.6,2372.3,0.42154]
[1728017213799,3.2078,2372.6,2372.1,0.42158]
[1728017214397,3.2078,2372.6,2372.2,0.42156]
[1728017214807,3.2078,2372.6,2372.3,0.42154]
[1728017215412,3.2078,2372.6,2372.4,0.42152]
[1728017215609,3.2078,2372.6,2372.3,0.42154]
[1728017217306,3.2078,2372.6,2372.0,0.4212]
[1728017217505,3.6293,2372.6,2372.1,0.42158]
[1728017217804,4.0475,2372.6,2372.1,0.42158]
[1728017218001,4.0475,2372.6,2372.1,0.42157]
[1728017218907,3.626,2372.6,2372.2,0.42157]
[1728017219101,0.42152,2372.5,2372.1,0.42157]
[1728017219515,3.626,2372.6,2372.2,0.42157]
[1728017219902,3.626,2372.6,2372.2,0.42156]
[1728017220101,3.626,2372.6,2372.0,0.4212]
[1728017220409,3.626,2372.6,2372.3,0.42154]
[1728017220612,3.626,2372.6,2372.2,0.42156]
[1728017220807,4.0475,2372.6,2372.2,0.42156]
[1728017221010,3.626,2372.6,2372.0,0.4212]
[1728017221515,3.626,2372.6,2372.3,0.42154]
[1728017221705,3.626,2372.6,2372.0,0.4212]
[1728017221905,3.626,2372.6,2372.2,0.42155]
[1728017222110,3.626,2372.6,2372.0,0.4212]
[1728017222319,3.626,2372.6,2372.4,0.42152]
[1728017222817,3.626,2372.6,2372.5,0.42151]
[1728017223007,3.2078,2372.6,2372.5,0.42151]
[1728017223816,0.42146,2372.8,2372.4,0.42152]
[1728017224018,3.2078,2373.1,2372.1,0.212]
[1728017224310,3.2078,2373.1,2372.4,0.42151]
[1728017224516,0.42145,2372.9,2372.0,0.6332]
[1728017224708,3.2078,2373.1,2372.2,3.2078]
[1728017224709,3.62921,2373.1,2372.2,3.2078]
[1728017224907,0.3885,2373.2,2373.0,0.42142]
[1728017225213,3.2078,2373.4,2372.5,3.2078]
[1728017225426,3.2078,2373.4,2373.2,0.42137]
[1728017225721,0.42133,2373.6,2372.8,3.2078]
[1728017226017,0.42133,2373.6,2373.2,0.42138]
[1728017226217,3.5991,2373.7,2372.8,3.2078]
[1728017226412,0.42135,2373.5,2373.1,0.42141]
[1728017226618,0.42139,2373.2,2372.8,3.62925]
[1728017226821,0.42142,2373.1,2372.8,3.2078]
[1728017227021,0.42144,2373.0,2372.8,3.2078]
[1728017227325,0.42142,2373.0,2372.8,3.2078]
[1728017227524,0.4131,2373.3,2372.8,3.2078]
[1728017227725,0.42141,2373.1,2372.8,3.2078]
[1728017227922,0.42143,2373.0,2372.8,3.2078]
[1728017228120,0.4189,2373.0,2372.8,3.2078]
[1728017228317,0.84033,2373.0,2372.8,3.2078]
[1728017228517,0.4189,2373.0,2372.8,3.2078]
[1728017228719,0.4189,2373.0,2372.8,3.62925]
[1728017230724,0.83448,2373.3,2372.9,0.42143]
[1728017230918,7.2578,2373.4,2372.8,3.2078]
[1728017231125,0.42143,2373.0,2372.8,3.2078]
[1728017232115,1.48103,2373.3,2372.8,3.2078]
[1728017232320,0.42147,2372.8,2372.4,3.62932]
[1728017232520,3.2078,2373.0,2372.4,3.2078]
[1728017232721,0.42148,2372.7,2372.4,3.2078]
[1728017232921,0.42151,2372.5,2372.4,3.2078]
[1728017233424,17.67872956,2372.5,2371.9,0.212]
[1728017233627,17.67872956,2372.5,2371.6,0.6277]
[1728017233628,3.2078,2372.1,2371.6,0.6277]
[1728017233824,3.2078,2372.1,2371.7,0.42164]
[1728017234123,3.62938,2372.1,2371.7,0.42164]
[1728017234730,3.62938,2372.1,2371.6,0.83736]
[1728017235019,3.62938,2372.1,2371.6,0.4157]
[1728017235020,3.2078,2372.1,2371.6,0.4157]
[1728017235224,0.42163,2371.9,2371.4,0.4217]
[1728017235430,3.2078,2372.1,2371.4,0.4217]
[1728017235431,3.2078,2372.1,2371.4,0.4157]
[1728017235625,3.62945,2371.8,2371.4,0.4157]
[1728017235814,3.62945,2371.8,2371.4,0.83741]
[1728017237027,3.2078,2371.8,2371.4,0.4157]
[1728017237221,0.42165,2371.8,2371.4,0.4157]
[1728017237628,3.62945,2371.8,2371.4,0.4157]
[1728017238121,0.42165,2371.8,2371.4,0.8374]
[1728017238320,0.42167,2371.6,2371.2,0.42173]
[1728017238516,0.42167,2371.6,2371.2,0.81393]
[1728017238721,0.4138,2371.7,2370.7,0.212]
[1728017239022,0.42167,2371.6,2371.1,0.42175]
[1728017239325,3.6216,2371.7,2371.3,0.42173]
[1728017239522,0.4138,2371.7,2371.5,0.42168]
[1728017239725,7.75041,2372.0,2371.5,0.42168]
[1728017239919,0.42163,2371.9,2371.5,0.42168]
[1728017242423,7.3288,2372.0,2371.5,0.42168]
[1728017242727,3.2078,2372.0,2371.4,0.4075]
[1728017242926,3.2078,2372.0,2371.8,0.42164]
[1728017243127,3.2078,2372.0,2371.4,0.4075]
[1728017243328,0.3948,2372.3,2371.6,3.2078]
[1728017243524,0.3948,2372.3,2372.0,0.42159]
[1728017243734,0.3948,2372.3,2372.1,0.4241]
[1728017245340,0.3948,2372.3,2372.1,0.84568]
[1728017246036,7.2578,2372.4,2372.1,0.84568]
[1728017247132,4.05,2372.4,2372.1,0.84568]
[1728017247527,3.2078,2372.5,2372.1,0.4241]
[1728017247724,0.428,2372.7,2372.1,0.4241]
[1728017247924,3.2078,2372.8,2372.2,0.3947]
[1728017248126,3.2078,2372.8,2372.6,0.42148]
[1728017248333,0.428,2373.2,2372.7,0.4185]
[1728017248636,0.84939,2373.2,2372.8,0.42144]
[1728017249431,0.84939,2373.2,2372.7,0.4185]
[1728017249726,0.42141,2373.1,2372.7,0.4185]
[1728017249928,3.2078,2373.0,2372.7,0.4185]
[1728017250127,0.4215,2372.6,2372.3,0.3941]
[1728017250435,4.05,2372.8,2372.3,0.3941]
[1728017250436,0.42152,2372.5,2372.3,0.3941]
[1728017250630,3.2078,2372.7,2372.3,0.3941]
[1728017250631,0.42153,2372.4,2372.3,0.3941]
[1728017250931,0.42153,2372.4,2371.9,0.3868]
[1728017250932,4.05,2372.4,2371.9,0.3868]
[1728017251131,4.05,2372.1,2371.9,0.3941]
[1728017251332,4.47159,2372.1,2371.9,0.3941]
[1728017251541,4.05,2372.1,2371.9,0.3941]
[1728017251838,4.05,2372.1,2371.9,0.81571]
[1728017252337,4.05,2372.1,2371.9,0.3941]
[1728017252637,4.05,2372.1,2371.9,0.81571]
[1728017253739,4.05,2372.1,2371.9,0.3941]
[1728017253935,4.05,2372.1,2372.0,0.4216]
[1728017254128,4.05,2372.1,2371.9,0.3941]
[1728017254334,4.05,2372.1,2371.9,0.81571]
[1728017254736,0.4083,2372.2,2371.9,0.81571]
[1728017256931,4.05,2372.4,2372.1,0.42157]
[1728017257138,0.4056,2372.6,2371.9,0.3941]
[1728017257339,0.42152,2372.5,2372.1,0.42157]
[1728017257640,0.8271,2372.6,2372.2,0.42157]
[1728017258741,4.0349,2372.6,2372.2,0.42157]
[1728017260050,0.8271,2372.6,2372.2,0.42157]
[1728017260238,4.0349,2372.6,2372.2,0.42157]
[1728017261743,3.6134,2372.6,2372.3,0.42155]
[1728017262343,4.03489,2372.6,2372.2,0.42155]
[1728017262640,4.03489,2372.6,2372.3,0.42155]
[1728017264242,4.0349,2372.6,2372.2,0.42156]
[1728017265539,3.6134,2372.6,2371.9,0.3941]
[1728017265742,4.03491,2372.6,2372.2,0.42156]
[1728017266137,3.6134,2372.6,2371.9,0.3941]
[1728017266337,0.42151,2372.5,2372.1,0.42158]
[1728017266832,0.42151,2372.5,2372.0,0.42159]
[1728017267042,3.6134,2372.6,2372.0,0.42159]
[1728017267244,4.47155,2372.4,2372.0,0.42159]
[1728017269538,0.42155,2372.3,2372.0,0.42159]
[1728017270843,0.42155,2372.3,2371.9,0.81571]
[1728017271043,3.62935,2372.3,2371.9,0.81571]
[1728017271544,3.29,2372.1,2371.9,0.81571]
[1728017272042,3.29,2372.1,2371.9,0.3941]
[1728017272449,3.71158,2372.1,2371.9,0.3941]
[1728017272944,3.29,2372.1,2371.9,0.3941]
[1728017273444,3.6928,2372.1,2371.9,0.3941]
[1728017273643,3.6928,2372.1,2371.9,0.81572]
[1728017273846,4.11439,2372.1,2371.9,0.3941]
[1728017274038,3.6928,2372.1,2371.9,0.3941]
[1728017274439,3.6928,2372.1,2371.9,0.81572]
[1728017275145,3.6928,2372.1,2371.9,0.3941]
[1728017276341,4.1144,2372.1,2371.9,0.3941]
[1728017276549,3.6928,2372.1,2371.9,0.3941]
[1728017276742,0.4216,2372.0,2371.9,0.3941]
[1728017277150,4.11439,2372.1,2371.9,0.3941]
[1728017277344,3.6928,2372.1,2371.9,0.81571]
[1728017278546,3.6928,2372.1,2371.9,0.3941]
[1728017278750,3.6928,2372.1,2371.9,0.81572]
[1728017279052,3.6928,2372.1,2371.9,0.3941]
[1728017279352,3.6928,2372.1,2371.9,0.81572]
[1728017280152,3.6928,2372.1,2371.9,0.3941]
[1728017281758,3.6928,2372.1,2371.9,0.81571]
[1728017281961,3.6928,2372.1,2372.0,0.4216]
[1728017282448,3.29,2372.1,2372.0,0.4216]
[1728017283052,3.29,2372.4,2372.0,0.4216]
[1728017283357,0.4024,2372.5,2372.1,0.4013]
[1728017283567,7.3288,2372.7,2372.1,0.4013]
[1728017283757,7.3288,2372.7,2372.4,0.42152]
[1728017283947,3.71147,2372.8,2372.5,0.4112]
[1728017284758,0.42148,2372.7,2372.5,0.4112]
[1728017285157,3.29,2372.6,2372.5,0.4112]
[1728017285656,3.29,2372.6,2372.5,0.83271]
[1728017285854,7.5052,2372.6,2372.5,0.4112]
[1728017286154,0.42152,2372.5,2372.1,0.82287]
[1728017286462,3.29,2372.2,2372.1,0.424]
[1728017286650,3.71157,2372.2,2372.1,0.424]
[1728017286856,3.71157,2372.2,2371.7,1.481712]
[1728017286857,7.5052,2372.2,2371.7,0.3902]
[1728017287161,3.29,2371.9,2371.8,0.84564]
[1728017288054,3.683,2372.1,2371.9,0.42161]
[1728017291156,3.683,2372.1,2372.0,0.4216]
[1728017292659,6.4978,2372.3,2372.1,0.42158]
[1728017292862,3.29,2372.3,2372.0,0.4216]
[1728017293167,3.29,2372.3,2372.1,0.42157]
[1728017293562,3.29,2372.3,2372.0,0.42159]
[1728017293864,3.29,2372.3,2372.0,0.4216]
[1728017294165,3.29,2372.3,2371.9,0.4246]
[1728017294365,3.29,2372.3,2372.0,0.42159]
[1728017295362,3.29,2372.1,2371.8,1.937142]
[1728017295660,3.29,2372.1,2371.8,0.424]
[1728017295661,3.7116,2372.1,2371.8,0.424]
[1728017295866,3.29,2371.9,2371.8,0.424]
[1728017296364,3.71162,2371.9,2371.8,0.424]
[1728017296659,3.29,2371.9,2371.8,0.424]
[1728017297766,3.71162,2371.9,2371.8,0.424]
[1728017298160,0.42167,2371.6,2371.5,1.091512]
[1728017298359,3.29,2371.6,2371.2,1.091512]
[1728017298661,3.29,2371.3,2371.0,1.091512]
[1728017298854,3.29,2371.3,2371.2,0.3904]
[1728017299266,13.5068,2371.3,2370.8,1.091512]
[1728017299562,6.8876,2371.4,2370.4,0.212]
[1728017299563,3.7118,2370.9,2370.4,0.212]
[1728017299767,0.3898,2370.8,2370.4,0.42187]
[1728017300059,3.2078,2371.3,2370.5,3.29]
[1728017300262,3.2078,2371.3,2370.6,3.15232203]
[1728017300559,3.29,2371.2,2370.8,0.4218]
[1728017301568,3.29,2371.2,2370.7,3.6046]
[1728017301860,3.29,2371.0,2370.7,0.3968]
[1728017303367,3.29,2370.8,2370.7,0.3968]
[1728017303568,0.42179,2371.0,2370.7,0.3968]
[1728017303569,3.2078,2371.0,2370.7,0.3968]
[1728017304165,3.2078,2371.0,2370.7,0.81863]
[1728017304366,3.2078,2371.0,2370.7,0.3968]
[1728017305671,3.2078,2371.0,2370.7,0.81863]
[1728017305965,4.47182,2370.8,2370.3,3.6297]
[1728017306461,0.4069,2370.7,2370.3,3.2078]
[1728017306665,0.4069,2370.7,2370.3,3.6297]
[1728017307267,4.05,2370.8,2370.3,3.2078]
[1728017307463,3.2078,2371.0,2370.4,0.4189]
[1728017307664,6.15735,2372.8,2370.4,0.4189]
[1728017307665,3.2078,2371.4,2370.5,4.2184]
[1728017307869,4.262,2371.7,2371.2,0.42173]
[1728017307870,0.4069,2371.5,2371.2,0.42173]
[1728017308067,0.4069,2371.5,2371.3,0.4074]
[1728017308766,0.4069,2371.5,2371.3,0.82912]
[1728017309284,7.4246,2371.4,2370.9,3.2078]
[1728017309569,3.2078,2371.4,2371.1,0.42176]
[1728017309961,3.2078,2371.4,2371.0,0.42177]
[1728017310867,3.2078,2371.4,2371.1,0.42175]
[1728017311063,4.4569,2371.5,2371.1,0.42175]
[1728017311574,4.87859,2371.5,2371.0,0.42177]
[1728017311866,4.87859,2371.5,2370.7,0.42182]
[1728017311867,0.42171,2371.4,2370.7,0.42182]
[1728017312067,3.62951,2371.4,2370.9,0.42179]
[1728017312269,3.2078,2371.4,2370.9,0.42179]
[1728017312470,3.62951,2371.4,2370.9,0.42179]
[1728017312969,3.62951,2371.4,2370.8,0.401]
[1728017313174,0.42173,2371.3,2370.8,0.4218]
[1728017317567,4.47175,2371.2,2370.7,0.42182]
[1728017317868,3.2078,2371.1,2370.7,0.42182]
[1728017318173,3.5933,2371.1,2370.6,0.391]
[1728017318467,3.5933,2371.1,2370.7,0.42182]
[1728017318669,3.5933,2371.1,2370.7,0.42183]
[1728017318872,3.5933,2371.1,2370.8,0.42181]
[1728017319670,3.5933,2371.1,2370.9,0.4218]
[1728017319865,3.5933,2371.1,2370.6,0.391]
[1728017320369,3.5933,2371.1,2370.8,0.42181]
[1728017320767,4.01506,2371.1,2370.7,0.42183]
[1728017320970,3.5933,2371.1,2370.7,0.42183]
[1728017323165,3.5933,2371.1,2370.6,0.391]
[1728017323371,3.5933,2371.1,2370.8,0.42181]
[1728017323869,3.5933,2371.1,2370.6,0.391]
[1728017324374,4.05,2370.9,2370.6,0.391]
[1728017324572,0.42183,2370.8,2370.6,0.391]
[1728017324775,0.42183,2370.7,2370.6,0.391]
[1728017324979,0.42183,2370.7,2370.3,0.42189]
[1728017324980,0.83023,2370.7,2370.3,0.42189]
[1728017325275,0.83023,2370.7,2370.3,0.83719]
[1728017325672,3.29,2370.4,2370.3,0.83719]
[1728017329373,3.29,2370.4,2370.3,0.4153]
[1728017329777,3.29,2370.4,2370.3,0.8372]
[1728017330172,3.29,2370.4,2370.3,0.4153]
[1728017331471,3.29,2370.4,2370.3,0.8372]
[1728017332973,3.6984,2370.7,2370.3,4.6337]
[1728017333175,3.6984,2370.7,2370.6,0.42185]
[1728017333780,3.29,2370.9,2370.8,0.42181]
[1728017334680,3.29,2370.9,2370.4,0.3877]
[1728017334681,3.29,2370.9,2370.4,0.42189]
[1728017334876,3.29,2370.9,2370.8,0.42181]
[1728017336778,0.4169,2371.0,2370.9,0.4218]
[1728017337479,4.6345,2371.0,2370.7,0.42183]
[1728017337676,3.29,2370.8,2370.7,0.42183]
[1728017337877,3.29,2370.8,2370.6,0.42184]
[1728017338289,3.29,2370.8,2370.5,0.42186]
[1728017338575,3.29,2370.5,2370.4,0.42188]
[1728017341276,7.3288,2371.6,2370.4,4.2184]
[1728017341473,6.4978,2370.6,2370.3,0.8199]
[1728017341778,0.423,2370.5,2370.4,0.42189]
[1728017342286,0.423,2370.5,2370.3,0.4106]
[1728017342782,0.423,2370.5,2370.4,0.42189]
[1728017343588,0.423,2370.5,2370.3,0.83249]
[1728017343786,0.423,2370.5,2370.4,0.42189]
[1728017348586,3.29,2370.8,2370.7,0.42183]
[1728017348892,3.6908,2370.8,2370.7,0.42183]
[1728017350981,3.6908,2370.8,2370.3,0.4106]
[1728017350982,7.3288,2371.2,2370.3,4.792112]
[1728017351188,0.11975114,2371.4,2370.7,3.29]
[1728017351189,0.8504,2371.4,2370.7,3.29]
[1728017351390,0.4008,2371.3,2371.2,0.42174]
[1728017352795,3.2078,2371.5,2371.4,0.42171]
[1728017353193,7.4246,2371.5,2371.4,0.42171]
[1728017355193,7.4246,2371.5,2370.9,5.436012]
[1728017355194,11.13631,2371.5,2371.0,0.42178]
[1728017355392,6.91951,2371.5,2371.1,0.42176]
[1728017355991,6.4978,2371.5,2371.2,0.42174]
[1728017356499,6.91949,2371.5,2371.2,0.42174]
[1728017356886,6.91949,2371.5,2371.1,0.42175]
[1728017357195,6.4978,2371.5,2371.2,0.42173]
[1728017357396,6.91949,2371.5,2371.1,0.42175]
[1728017357590,6.91949,2371.5,2371.2,0.42174]
[1728017357791,6.4978,2371.5,2371.2,0.42174]
[1728017358594,6.9195,2371.5,2371.1,0.42176]
[1728017358899,3.29,2371.3,2370.9,0.4218]
[1728017359204,3.29,2371.3,2371.0,0.42176]
[1728017359396,0.4279,2371.2,2371.0,0.42176]
[1728017360201,0.4279,2371.2,2370.8,4.4502]
[1728017360504,0.4279,2371.2,2371.0,0.42177]
[1728017366790,10.6455,2371.2,2370.7,1.091512]
[1728017366996,3.71182,2370.8,2370.3,0.212]
[1728017367196,3.62,2370.7,2370.2,0.42191]
[1728017367895,3.62,2370.7,2370.2,0.42192]
[1728017368090,3.62,2370.7,2370.2,0.42191]
[1728017368296,3.62,2370.7,2370.1,1.23433]
[1728017368500,0.4011,2370.6,2370.1,1.23433]
[1728017368898,0.4011,2370.6,2370.2,0.42192]
[1728017369099,0.4011,2370.6,2370.1,0.8124]
[1728017369299,0.4011,2370.6,2370.1,1.23433]
[1728017369602,0.4011,2370.6,2370.1,0.8124]
[1728017369903,0.4011,2370.6,2370.1,1.23433]
[1728017370703,0.4011,2370.6,2370.1,0.84784]
[1728017370899,0.4011,2370.6,2370.1,0.4259]
[1728017371101,0.4011,2370.6,2370.1,0.84783]
[1728017371307,0.4011,2370.6,2370.1,0.4259]
[1728017371600,0.82295,2370.6,2370.1,0.4259]
[1728017371807,0.4011,2370.6,2370.1,0.4259]
[1728017372098,0.4011,2370.6,2370.1,0.84784]
[1728017372502,3.2078,2370.4,2370.1,0.4259]
[1728017372998,0.4011,2370.3,2369.9,0.83676]
[1728017373207,0.4011,2370.3,2369.8,3.2078]
[1728017373208,0.4011,2370.3,2369.8,4.01868]
[1728017373399,0.4011,2370.3,2369.9,0.4059]
[1728017373704,3.29,2370.2,2369.8,3.2078]
[1728017373893,3.29,2370.2,2369.8,4.05499]
[1728017374098,3.29,2370.2,2369.8,3.633]
[1728017374296,3.29,2370.2,2369.9,0.42197]
[1728017375510,3.29,2370.2,2369.8,4.05498]
[1728017376204,3.29,2370.2,2369.9,0.42197]
[1728017376403,0.4011,2370.3,2369.8,0.4252]
[1728017376404,0.4011,2370.3,2370.1,0.42193]
[1728017376602,0.4011,2370.3,2370.1,0.42192]
[1728017376799,6.4978,2371.0,2370.2,4.2192]
[1728017377111,3.29,2371.0,2370.7,0.42182]
[1728017377402,3.29,2371.0,2370.8,0.4097]
[1728017379311,3.29,2371.0,2370.8,0.803]
[1728017379613,3.29,2371.0,2370.8,1.1948]
[1728017381704,0.4037,2371.1,2370.8,1.1948]
[1728017382104,4.121,2371.4,2370.8,5.4124]
[1728017382305,4.121,2371.4,2371.0,0.42177]
[1728017382502,4.121,2371.4,2370.8,1.1948]
[1728017382704,4.54271,2371.4,2370.9,0.42179]
[1728017383206,4.121,2371.4,2370.9,0.42179]
[1728017383510,3.29,2371.3,2370.8,1.61661]
[1728017383810,3.29,2371.3,2370.8,1.1948]
[1728017384008,3.29,2371.3,2370.9,0.42179]
[1728017385703,3.29,2371.3,2370.8,1.1948]
[1728017385901,3.29,2371.3,2370.8,1.6166]
[1728017386112,3.29,2371.3,2370.9,0.42179]
[1728017387907,3.29,2371.3,2370.8,1.1948]
[1728017388109,3.62956,2371.2,2370.8,1.1948]
[1728017388426,3.29,2371.1,2370.8,0.8015]
[1728017388608,0.42178,2371.0,2370.8,0.4097]
[1728017388812,4.51397,2371.1,2370.8,0.4097]
[1728017389820,4.0922,2371.1,2370.8,0.4097]
[1728017390317,3.29,2370.9,2370.5,0.8005]
[1728017390523,3.29,2370.9,2370.6,0.81965]
[1728017392616,3.29,2370.9,2370.6,0.3978]
[1728017392818,3.29,2370.9,2370.6,0.81965]
[1728017393620,3.29,2370.9,2370.6,0.3978]
[1728017394213,3.29,2370.9,2370.6,0.81965]
[1728017395315,3.29,2370.9,2370.7,0.42182]
[1728017396123,4.0922,2371.1,2370.7,0.42182]
[1728017396716,4.51397,2371.1,2370.7,0.42183]
[1728017397118,4.0922,2371.1,2370.7,0.42183]
[1728017397616,3.29,2371.0,2370.7,0.42183]
[1728017398118,3.29,2371.0,2370.6,0.3978]
[1728017398326,3.29,2371.0,2370.7,0.42182]
[1728017400627,0.3883,2371.1,2370.6,3.6056]
[1728017400821,4.54271,2371.4,2371.0,0.42178]
[1728017401021,0.4028,2371.3,2371.0,0.42178]
[1728017401216,3.6928,2371.3,2371.0,0.42178]
[1728017401617,3.6928,2371.3,2370.7,1.10303577]
[1728017401920,0.4028,2371.3,2370.7,1.10303577]
[1728017402126,0.4028,2371.3,2370.8,0.42181]
[1728017402316,0.4028,2371.3,2371.0,0.42176]